{"text_format":"3","workbook":"xlsx","n_sheets":4,"sheets":["Commentaires","Données financières","BFR ou DFR","Evolution du BFR"],"not_rendered":{"defined_names":4,"comments":1},"read":"whole","date_system":"1900"}

{"sheet":"Commentaires","index":0,"n_rows":16,"n_cols":2,"rows_kept":16}
[]
[]
[null,"Cette notion de besoin en fonds de roulement est fondamentale car elle correspond au besoin de capitaux permanents qui sont nécessaires pour financer l'exploitation courante."]
[null,"Dans le cadre de son exploitation courante en effet, l'entreprise est amenée à faire des avances de fonds (stockage matières, marchandises, en-cours de production, produits finis ….) avant de vendre ses produits. La durée du cycle d'exploitation  (fabrication-commercialisation) est plus ou moins longue et pendant ce temps il faudra payer  les salaires et autres charges diverses avant de commencer à vendre. Il va sans dire que plus ce cycle est long et plus les besoins financiers augmentent. De plus, il est souvent d'usage d'accorder des délais de paiement aux clients, ce qui génère aussi des besoins financiers. Ceux-ci pourront être atténués par des ressources provenant  principalement, des délais de paiement qu'elle obtiendra elle-même de ses fournisseurs."]
[null,"De ces observations, il en résulte qu'en règle générale, l'entreprise devra  faire face à des remboursements de dettes avant d'avoir encaissé les recettes prévues. Un tel processus peut entraîner à terme la rupture de trésorerie et la cessation de paiements. D'où la nécessité d'un \"fonds de réserve\"."]
[null,"Le besoin en fonds de roulement est la différence entre les besoins et les ressources liés au cycle d'activité. Cette grandeur s'analyse comme étant le besoin de financement permanent lié à l'exploitation auquel l'entreprise devra faire face pour assurer la couverture du décalage de trésorerie qui existera constamment entre les dépenses et les recettes d'exploitation. Il gonflera avec la croissance du chiffre d'affaires."]
[null,"Ce besoin  doit être financé par des capitaux permanents : s'il paraît naturel de financer un investissement par des fonds propres ou des dettes à long terme, il doit en être de même du besoin en fonds de roulement qui représente une \"masse d'argent \" immobilisée qu'il faut considérer comme un \"investissement financier\" nécessaire au fonctionnement de l'entreprise."]
[null,"Bien comprendre ce mécanisme simple, c'est s'éviter cette trop fréquente et douloureuse interrogation : comment se fait-il que j'ai tant de problèmes financiers alors que mon activité est suffisante et rentable ?"]
[null,"Déterminer le montant du besoin financier d'exploitation (appelé communément Besoin en Fonds de Roulement) et en maîtriser l'évolution suppose de bien connaître chacune de ses composantes qui sont, pour l'essentiel :"]
[null,"* en emplois : "]
[null,"- le montant des stocks de marchandises, matières, en-cours, produits finis dont l'entreprise devra disposer à tout moment en tenant compte des cadences   d'approvisionnement, des contraintes de fabrication et du niveau d'activité, \n- le montant des créances clients en attente de réglement évaluées TTC. Cemontant est bien sûr fonction de l'importance du chiffre d'affaires et de délais de paiement consentis aux clients."]
[null,"* en ressources : "]
[null,"- le montant des dettes fournisseurs en attente de règlement évaluées TTC qui est fonction du volume des achats et des  délais de paiement obtenus des fournisseurs "]
[null,"Il faut donc s'interroger sur chacun de ces éléments et prévoir, de façon réaliste : \n- quel sera son poids par rapport au chiffre d'affaires,\n- avec quel délai il sera encaissé ou payé"]
[null,"Pour cela, il faut avoir préalablement établi son compte de résultat prévisionnel, déterminé la durée du cycle d'exploitation et estimé les délais de paiement à consentir aux clients et ceux qu'il sera possible d'obtenir des fournisseurs. Cela implique de bien connaître son \"métier\" et la situation de l'entreprise sur son marché. Il faut donc se référer aux normes de la profession en ce qui concerne les stocks comme en ce qui concerne les pratiques en matière de réglement des clients et des fournisseurs. Ensuite, le chiffrage n'est qu'une question de méthode."]
[null,"Ajoutons que, lorsque les délais de stockage et les conditions de règlement des fournisseurs et des clients ne varient pas d'une année sur l'autre, ce besoin financier (BFR) évolue parallélement au chiffre d'affaires."]

{"sheet":"Données financières","index":1,"n_rows":32,"n_cols":8,"rows_kept":32,"merged":[[1,1,1,5]]}
[]
[null,"Données financières"]
[]
[null,"Compte de résultats","K€",null,"Bilan","K€"]
[null,"Ventes France HT",null,null,"Compte clients",{"v":12000,"d":"12,000.00 "},null,{"$f":"120000*35/360","v":11666.666666666666}]
[null,"Ventes à l'exportation",{"v":0,"d":"0.00 "},null,"Effets à recevoir"]
[null,"= Chiffre d'affaires Hors Taxes",{"$f":"SUM(C5:C6)","v":{"v":0,"d":"0.00 "}},null,"Effets escomptés non échus"]
[null,"Taux de TVA sur ventes"]
[null,"= Montant de la TVA collectée",{"$f":"IF(ISBLANK(C5),0,C5*C8)","v":{"v":0,"d":"0.00 "}},null,"Acomptes reçus sur commandes"]
[null,"= Chiffre d'affaires TTC",{"$f":"C5+C6+C9","v":{"v":0,"d":"0.00 "}},null,"= Montant des créances clients",{"$f":"SUM(F5:F8)-F9","v":{"v":12000,"d":"12,000.00 "}}]
[null,"Achat de matières premières",null,null,"Stock initial de matières premières",{"v":5000,"d":"5,000.00 "}]
[null,"Variation de stocks",null,null,"Stock final de matières premières"]
[null,"= Coût d'achat des matières et appros",{"$f":"SUM(C11:C12)","v":{"v":0,"d":"0.00 "}},null,"= Stock moyen des matières premières et appros",{"$f":"IF(ISERROR((F11+F12)/2),0,(F11+F12)/2)","v":{"v":2500,"d":"2,500.00 "}}]
[null,"Coût de production de produits finis",null,null,"Stock initial de produits finis",{"v":5000,"d":"5,000.00 "}]
[null,"Variation de stocks",null,null,"Stock final de produits finis",{"v":5000,"d":"5,000.00 "}]
[null,"= Coût de production de produits finis",{"$f":"SUM(C14:C15)","v":{"v":0,"d":"0.00 "}},null,"= Stock moyen des produits finis",{"$f":"IF(ISERROR((F14+F15)/2),0,(F14+F15)/2)","v":{"v":5000,"d":"5,000.00 "}}]
[null,"Coût de production de produits en cours",null,null,"Stock initial d'encours de production"]
[null,"Variation de stocks",null,null,"Stock final d'encours de production"]
[null,"= Coût de production des encours",{"$f":"SUM(C17:C18)","v":{"v":0,"d":"0.00 "}},null,"= Stock moyen d'encours de production",{"$f":"IF(ISERROR((F17+F18)/2),0,(F17+F18)/2)","v":{"v":0,"d":"0.00 "}}]
[null,"Achat de marchandises",null,null,"Stock initial de marchandises"]
[null,"Variation de stocks",null,null,"Stock final de marchandises"]
[null,"= Coût d'achat des marchandises",{"$f":"SUM(C20:C21)","v":{"v":0,"d":"0.00 "}},null,"= Stock moyen de marchandises",{"$f":"IF(ISERROR((F20+F21)/2),0,(F20+F21)/2)","v":{"v":0,"d":"0.00 "}}]
[null," Autres achats et charges externes",null,null,"Taux de TVA sur achats"]
[null,"= Total des consommations externes",{"$f":"C11+C20+C23","v":{"v":0,"d":"0.00 "}},null,"= Montant de la TVA déductible",{"$f":"IF(ISERROR(C24*F23),0,C24*F23)","v":{"v":0,"d":"0.00 "}}]
[null,"Total des consommations externes HT",{"$f":"C24","v":{"v":0,"d":"0.00 "}},null,"Compte fournisseurs d'exploitation"]
[null,"Tva déductible",{"$f":"F24","v":{"v":0,"d":"0.00 "}},null,"Avances et acomptes versés sur commandes"]
[null,"= Total des consommations externes TTC",{"$f":"SUM(C25:C26)","v":{"v":0,"d":"0.00 "}},null,"= Total dettes fournisseurs d'exploitation",{"$f":"F25-F26","v":{"v":0,"d":"0.00 "}}]
[null,"Salaires bruts totaux",null,null,"Compte personnel",null,{"$f":"IF(ISBLANK('BFR ou DFR'!C13),1,\" \")","v":" "}]
[null,"Taux de cotisations salariales",null,null,"Avances et acomptes versés au personnel",null,{"$f":"IF(ISBLANK('BFR ou DFR'!C14),1,\" \")","v":" "}]
[null,"= Salaires nets totaux",{"$f":"IF(ISERROR(C28*(1-C29)),0,(C28*(1-C29)))","v":{"v":0,"d":"0.00 "}},null,"= Total dettes personnel",{"$f":"F28-F29","v":{"v":0,"d":"0.00 "}}]
[null,"Cotisations sociales totales (salariales + patronales)",null,null,"Montant des cotisations dues"]
[{"$nulls":4},"Montant de la TVA collectée",{"$f":"C9","v":{"v":0,"d":"0.00 "}}]

{"sheet":"BFR ou DFR","index":2,"n_rows":25,"n_cols":13,"rows_kept":25,"merged":[[1,1,1,12],[3,1,4,1],[3,2,4,2],[3,3,4,3],[3,4,4,4],[3,6,3,9],[3,11,4,11],[3,12,4,12],[15,1,15,3],[15,6,15,9],[16,1,16,3],[16,6,16,9],[18,6,18,8],[19,6,19,8],[21,9,21,11],[24,9,24,11]]}
[]
[null,"Calcul du Besoin en Fonds de Roulement normatif"]
[]
[null,"Indicateurs","Délais \nmoyens \nactuels","Coefficient\nde \nstructure","Délais \nmoyens \nen jours \nde CA HT",null,"Améliorations possibles",{"$nulls":4},"Nouveaux \ndélais \nen jours \nde CA HT","Ecarts \nen \nmontant"]
[{"$nulls":6},"D \ndélais","Nouveaux délais","D \ncoef.","Nouveaux coefficients"]
[null," = Délai de paiement des clients",{"$f":"ROUNDUP(IF(ISERROR('Données financières'!F10*360/'Données financières'!C10),0,'Données financières'!F10*360/'Données financières'!C10),0)","v":{"v":0,"d":"0 J"}},{"$f":"IF(ISERROR(CATTC/CAHT),0,CATTC/CAHT)","v":{"v":0,"d":"0.000"}},{"$f":"ROUNDUP(IF(ISERROR(C6*D6),0,C6*D6),0)","v":{"v":0,"d":"0 J"}},null,null,{"$f":"IF(ISBLANK(G6),\" \",IF(E6=0,0,C6+G6))","v":" "},null,{"$f":"D6+I6","v":{"v":0,"d":"0.000"}},null,{"$f":"IF(ISERROR(ROUNDUP(IF(H6=\" \",\" \",H6*J6),0)),\" \",ROUNDUP(IF(H6=\" \",\" \",H6*J6),0))","v":" "},{"$f":"IF(H6=\" \",\" \",(L6-E6)*CAHT/360)","v":" "}]
[null," = Délai d'écoulement des stocks de matières",{"$f":"ROUNDUP(IF(ISERROR('Données financières'!F13*360/'Données financières'!C13),0,'Données financières'!F13*360/'Données financières'!C13),0)","v":{"v":0,"d":"0 J"}},{"$f":"IF(ISERROR('Données financières'!C13/CAHT),0,'Données financières'!C13/CAHT)","v":{"v":0,"d":"0.000"}},{"v":0,"d":"0 J"},null,null," ",null,{"v":0,"d":"0.000"},null,{"$f":"IF(ISERROR(ROUNDUP(IF(H7=\" \",\" \",H7*J7),0)),\" \",ROUNDUP(IF(H7=\" \",\" \",H7*J7),0))","v":" "},{"$f":"IF(H7=\" \",\" \",(L7-E7)*CAHT/360)","v":" "}]
[null," = Délai d'écoulement des stocks de produits finis",{"$f":"ROUNDUP(IF(ISERROR('Données financières'!F16*360/'Données financières'!C16),0,'Données financières'!F16*360/'Données financières'!C16),0)","v":{"v":0,"d":"0 J"}},{"$f":"IF(ISERROR('Données financières'!C16/CAHT),0,'Données financières'!C16/CAHT)","v":{"v":0,"d":"0.000"}},{"v":0,"d":"0 J"},null,null," ",null,{"v":0,"d":"0.000"},null," ",{"$f":"IF(ISERROR(IF(H8=\" \",\" \",(L8-E8)*CAHT/360)),\" \",IF(H8=\" \",\" \",(L8-E8)*CAHT/360))","v":" "}]
[null," = Délai d'écoulement des stocks d'encours",{"$f":"ROUNDUP(IF(ISERROR('Données financières'!F19*360/'Données financières'!C19),0,'Données financières'!F19*360/'Données financières'!C19),0)","v":{"v":0,"d":"0 J"}},{"$f":"IF(ISERROR('Données financières'!C19/CAHT),0,'Données financières'!C19/CAHT)","v":{"v":0,"d":"0.000"}},{"v":0,"d":"0 J"},null,null," ",null,{"v":0,"d":"0.000"},null," ",{"$f":"IF(ISERROR(IF(H9=\" \",\" \",(L9-E9)*CAHT/360)),\" \",IF(H9=\" \",\" \",(L9-E9)*CAHT/360))","v":" "}]
[null," = Délai d'écoulement des stocks de marchandises",{"$f":"ROUNDUP(IF(ISERROR('Données financières'!F22*360/'Données financières'!C22),0,'Données financières'!F22*360/'Données financières'!C22),0)","v":{"v":0,"d":"0 J"}},{"$f":"IF(ISERROR('Données financières'!C22/CAHT),0,'Données financières'!C22/CAHT)","v":{"v":0,"d":"0.000"}},{"v":0,"d":"0 J"},null,null,{"$f":"IF(ISBLANK(G10),\" \",IF(E10=0,0,C10+G10))","v":" "},null,{"v":0,"d":"0.000"},null," ",{"$f":"IF(ISERROR(IF(H10=\" \",\" \",(L10-E10)*CAHT/360)),\" \",IF(H10=\" \",\" \",(L10-E10)*CAHT/360))","v":" "}]
[null," = Etat - TVA déductible",{"v":35,"d":"35 J"},{"$f":"IF(ISERROR('Données financières'!F24/CAHT),0,'Données financières'!F24/CAHT)","v":{"v":0,"d":"0.000"}},{"v":0,"d":"0 J"},null,null,{"$f":"IF(ISBLANK(G11),\" \",IF(E11=0,0,C11+G11))","v":" "},null,{"v":0,"d":"0.000"},null," ",{"$f":"IF(ISERROR(IF(H11=\" \",\" \",(L11-E11)*CAHT/360)),\" \",IF(H11=\" \",\" \",(L11-E11)*CAHT/360))","v":" "}]
[null," = Délai de paiement des fournisseurs",{"$f":"ROUNDUP(IF(ISERROR('Données financières'!F27*360/'Données financières'!C27),0,'Données financières'!F27*360/'Données financières'!C27),0)","v":{"v":0,"d":"0 J"}},{"$f":"IF(ISERROR('Données financières'!C27/CAHT),0,'Données financières'!C27/CAHT)","v":{"v":0,"d":"0.000"}},{"v":0,"d":"0 J"},null,null,{"$f":"IF(ISBLANK(G12),\" \",IF(E12=0,0,C12+G12))","v":" "},null,{"v":0,"d":"0.000"},null," ",{"$f":"IF(ISERROR(IF(H12=\" \",\" \",(L12-E12)*CAHT/360)),\" \",IF(H12=\" \",\" \",(L12-E12)*CAHT/360))","v":" "}]
[{"$f":"IF(ISBLANK(C13),1,\" \")","v":" "},{"$f":"IF(ISBLANK(C13),\" = Délai de paiement personnel à renseigner\",\" = Délai de paiement du personnel\")","v":" = Délai de paiement du personnel"},{"v":15,"d":"15 J"},{"$f":"IF(ISERROR('Données financières'!C30/CAHT),0,'Données financières'!C30/CAHT)","v":{"v":0,"d":"0.000"}},{"v":0,"d":"0 J"},null,null," ",null,{"v":0,"d":"0.000"},null," "," "]
[{"$f":"IF(ISBLANK(C14),1,\" \")","v":" "},{"$f":"IF(ISBLANK(C14),\" = Délai de paiement organismes sociaux à renseigner\",\" = Délai de paiement des organismes sociaux\")","v":" = Délai de paiement des organismes sociaux"},{"v":15,"d":"15 J"},{"$f":"IF(ISERROR('Données financières'!F31/CAHT),0,'Données financières'!F31/CAHT)","v":{"v":0,"d":"0.000"}},{"v":0,"d":"0 J"},null,null," ",null,{"v":0,"d":"0.000"},null," "," "]
[null," = Etat - TVA collectée",{"$f":"C11","v":{"v":35,"d":"35 J"}},{"$f":"IF(ISERROR('Données financières'!F32/CAHT),0,'Données financières'!F32/CAHT)","v":{"v":0,"d":"0.000"}},{"v":0,"d":"0 J"},null,null," ",null,{"v":0,"d":"0.000"},null," "," "]
[null,"= Total des besoins en jours de chiffre d'affaires HT",null,null,{"$f":"E6+E7+E8+E9+E10+E11","v":{"v":0,"d":"0 J"}},null,"= Total des besoins  en jours de CA ht et K€",{"$nulls":4},{"$f":"IF(ISERROR(L6+L7+L8+L9+L10+L11),\" \",L6+L7+L8+L9+L10+L11)","v":" "}," "]
[null,"= Total des ressources en jours de chiffre d'affaires Hors Taxes",null,null,{"$f":"E12+E13+E14+E15","v":{"v":0,"d":"0 J"}},null,"= Total des ressources  en jours de CA ht et K€",{"$nulls":4},{"$f":"IF(ISERROR(L12+L13+L14+L15),\" \",L12+L13+L14+L15)","v":" "}," "]
[]
[null,"Besoin en fonds de roulement (BFR)",{"$f":"IF((E16-E17)>0,E16-E17,0)","v":{"v":0,"d":"0 j de CA"}},{"$f":"C19/360","v":{"v":0,"d":"0.0% de CA"}},{"$f":"CAHT*C19/360","v":{"v":0,"d":"0 K€  "}},null,"Besoin en fonds de roulement",null,null,{"$f":"IF(ISERROR(IF((L16-L17)>0,L16-L17,0)),0,IF((L16-L17)>0,L16-L17,0))","v":{"v":0,"d":"0 j de CA"}},null,{"$f":"IF(ISERROR(J19/360),\" \",J19/360)","v":{"v":0,"d":"0.0% de CA"}},{"$f":"IF(ISERROR(CAHT*J19/360),0,CAHT*J19/360)","v":{"v":0,"d":"0 K€  "}}]
[null,"Dégagement de fonds de roulement (DFR)",{"$f":"IF((E17-E16)>0,E17-E16,0)","v":{"v":0,"d":"0 j de CA"}},{"$f":"C20/360","v":{"v":0,"d":"0.0% de CA"}},{"$f":"CAHT*C20/360","v":{"v":0,"d":"0 K€  "}},null,"Dégagement de fonds de roulement",null,null,{"$f":"IF(ISERROR(IF((L17-L16)>0,L17-L16,0)),0,IF((L17-L16)>0,L17-L16,0))","v":{"v":0,"d":"0 j de CA"}},null,{"$f":"IF(ISERROR(J20/360),\" \",J20/360)","v":{"v":0,"d":"0.0% de CA"}},{"$f":"IF(ISERROR(CAHT*J20/360),0,CAHT*J20/360)","v":{"v":0,"d":"0 K€  "}}]
[]
[{"$nulls":9},{"$f":"IF(M22=\" \",\" \",\"= Gain de trésorerie\")","v":"= Gain de trésorerie"},null,null,{"$f":"IF(ISERROR(IF((M19+M20)=0,0,E19-M19-E20+M20)),0,IF((M19+M20)=0,0,E19-M19-E20+M20))","v":{"v":0,"d":"0 K€  "}}]
[null,"Si le chiffre d'affaires varie de ",null,"   il sera égal à",{"$f":"IF(ISBLANK(C23),0,CAHT*(1+C23))","v":{"v":0,"d":"0 K€  "}}]
[]
[{"$nulls":3},{"$f":"IF(E23=0,\" \",IF(C19>0,\"et le BFR égal à \",IF(C20>0,\"et le DFR sera égal à \")))","v":" "},{"$f":"IF(ISBLANK(C23),\" \",IF(C19>0,E23*C19/360,IF(C20>0,E23*C20/360,0)))","v":" "},{"$nulls":4},{"$f":"IF(M25=\" \",\" \",\"= Gain de trésorerie\")","v":{"$error":"#DIV/0!"}},null,null,{"$f":"M22*E23/CAHT","v":{"$error":"#DIV/0!"}}]

{"sheet":"Evolution du BFR","index":3,"n_rows":29,"n_cols":13,"rows_kept":29,"merged":[[1,1,1,12],[3,4,3,5],[7,1,7,5],[7,9,7,10],[15,1,15,3],[15,7,16,7],[16,1,16,3],[18,1,18,5],[18,9,18,10],[20,2,20,3],[21,2,21,3],[22,2,22,3],[23,1,24,3],[23,7,24,7],[26,1,26,3],[26,7,26,10]]}
[]
[null,"Exemple d'évolution du Besoin en fonds de roulement (BFR) et de la trésorerie"]
[]
[{"$nulls":3},{"$f":"IF(AND(C6>1,ISBLANK(tva)),1,0)","v":0},{"$f":"IF(AND(C6>0,ISBLANK(tva)),\"Indiquer le taux de TVA\",\" \")","v":" "},null,null,"D %",{"$nulls":4},"D"]
[]
[null," Chiffre d'affaires HT (€)",null,{"$f":"IF(ISBLANK(C6),\" \",100%)","v":" "},"Taux de TVA",{"v":0.2,"d":"20.00%"},{"$f":"IF(ISBLANK(H6),1,\" \")","v":1},null,null,{"$f":"IF(ISBLANK(H6),\" \",C6*(1+H6))","v":" "},{"$f":"IF(ISBLANK(H6),\" \",100%)","v":" "},null,{"$f":"IF(ISBLANK($H$6),\" \",J6-C6)","v":" "}]
[]
[null,"Données actuelles\n(renseigner taux ou montants)",{"$nulls":5},"nouveaux \ntaux",null,"Nouvelles données",null,null,"Ecart"]
[]
[null,"Mat. & marchandises consommées",null,null,{"$f":"ROUND(C6*D10,0)","v":{"v":0,"d":"0 "}},{"$f":"IF(ISERROR(E10/C6),\" \",E10/C6)","v":" "},{"$nulls":3},{"$f":"IF(ISERROR($J$6*H10),\" \",$J$6*H10)","v":" "},{"$f":"IF(ISERROR(J10/J6),\" \",J10/J6)","v":" "},null,{"$f":"IF(ISBLANK($H$6),\" \",J10-E10)","v":" "}]
[null,"Charges de personnel",{"$nulls":3},{"$f":"IF(ISERROR(E11/C6),\" \",E11/C6)","v":" "},{"$nulls":3},{"$f":"IF(ISERROR($J$6*H11),\" \",$J$6*H11)","v":" "},{"$f":"IF(ISERROR(J11/J6),\" \",J11/J6)","v":" "},null," "]
[null,"Impôts & taxes",{"$nulls":3},{"$f":"IF(ISERROR(E12/C6),\" \",E12/C6)","v":" "},{"$nulls":3},{"$f":"IF(ISERROR($J$6*H12),\" \",$J$6*H12)","v":" "},{"$f":"IF(ISERROR(J12/J6),\" \",J12/J6)","v":" "},null," "]
[null,"Amortissements",{"$nulls":3},{"$f":"IF(ISERROR(E13/C6),\" \",E13/C6)","v":" "},{"$nulls":3},{"$f":"IF(ISERROR($J$6*H13),\" \",$J$6*H13)","v":" "},{"$f":"IF(ISERROR(J13/J6),\" \",J13/J6)","v":" "},null," "]
[null,"Frais financiers",{"$nulls":3},{"$f":"IF(ISERROR(E14/C6),\" \",E14/C6)","v":" "},{"$nulls":4},{"$f":"IF(ISERROR(J14/J6),\" \",J14/J6)","v":" "},null," "]
[null,"Impôts sur les bénéfices",null,null,{"$f":"ROUND(IF((C6-E10-E11-E12-E13-E14)<0,0,(C6-E10-E11-E12-E13-E14)*D15),0)","v":{"v":0,"d":"0 "}},{"$f":"IF(ISERROR(E15/C6),\" \",E15/C6)","v":" "},{"$nulls":3},{"$f":"IF(ISERROR(IF((J6-J10-J11-J12-J13-J14)<0,0,(J6-J10-J11-J12-J13-J14)*H15)),\" \",IF((J6-J10-J11-J12-J13-J14)<0,0,(J6-J10-J11-J12-J13-J14)*H15))","v":" "},{"$f":"IF(ISERROR(J15/J6),\" \",J15/J6)","v":" "},null," "]
[null,"Résultat",null,null,{"$f":"C6-E10-E11-E12-E13-E14-E15","v":{"v":0,"d":"0 "}},{"$f":"IF(ISERROR(E16/C6),\" \",E16/C6)","v":" "},{"$nulls":3},{"$f":"IF(ISERROR(J6-J10-J11-J12-J13-J14-J15),\" \",J6-J10-J11-J12-J13-J14-J15)","v":" "},{"$f":"IF(ISERROR(J16/J6),\" \",J16/J6)","v":" "},null,{"$f":"IF(ISBLANK($H$6),\" \",J16-E16)","v":" "}]
[null,"Capacité d'autofinancement",null,null,{"$f":"E16+E13","v":{"v":0,"d":"0 "}},{"$f":"IF(ISERROR(E17/C6),\" \",E17/C6)","v":" "},{"$nulls":3},{"$f":"IF(ISERROR(J16+J13),\" \",J16+J13)","v":" "},{"$f":"IF(ISERROR(J17/J6),\" \",J17/J6)","v":" "},null,{"$f":"IF(ISBLANK($H$6),\" \",J17-E17)","v":" "}]
[]
[null,"Données actuelles \n(renseigner les jours moyens d'écoulement et de paiement)",{"$nulls":5},"nouveaux \ndélais",null,"Nouvelles données",null,null,"Ecart"]
[]
[null,"stocks",null,null,{"$f":"ROUND(E10*C21/360,0)","v":{"v":0,"d":"0 "}},{"$f":"IF(ISERROR(E21/C6),\" \",E21/C6)","v":" "},{"$nulls":3},{"$f":"IF(ISERROR(J10*H21/360),\" \",7*H21/360)","v":" "},{"$f":"IF(ISERROR(J21/J6),\" \",J21/J6)","v":" "},null,{"$f":"IF(ISBLANK($H$6),\" \",J21-E21)","v":" "}]
[null,"clients",null,null,{"$f":"ROUND((C6*(1+tva))*C22/360,0)","v":{"v":0,"d":"0 "}},{"$f":"IF(ISERROR(E22/C6),\" \",E22/C6)","v":" "},{"$nulls":3},{"$f":"IF(ISERROR((J6*(1+tva))*H22/360),\" \",(J6*1.2)*H22/360)","v":" "},{"$f":"IF(ISERROR(J22/J6),\" \",J22/J6)","v":" "},null,{"$f":"IF(ISBLANK($H$6),\" \",J22-E22)","v":" "}]
[null,"fournisseurs",null,null,{"$f":"ROUND(((E10+E21)*(1+tva))*C23/360,0)","v":{"v":0,"d":"0 "}},{"$f":"IF(ISERROR(E23/C6),\" \",E23/C6)","v":" "},{"$nulls":3},{"$f":"IF(ISERROR(((J10+J21)*(1+tva))*H23/360),\" \",((J10+J21)*1.2)*H23/360)","v":" "},{"$f":"IF(ISERROR(J23/J6),\" \",J23/J6)","v":" "},null,{"$f":"IF(ISBLANK($H$6),\" \",J23-E23)","v":" "}]
[null,"Besoin en Fonds de Roulement",null,null,{"$f":"E21+E22-E23","v":{"v":0,"d":"0 "}},{"$f":"IF(ISERROR(E24/E10),\" \",E24/E10)","v":" "},{"$nulls":3},{"$f":"IF(ISERROR(J21+J22-J23),\" \",J21+J22-J23)","v":" "},{"$f":"IF(ISERROR(J24/J10),\" \",J24/J10)","v":" "},null,{"$f":"IF(ISBLANK($H$6),\" \",J24-E24)","v":" "}]
[{"$nulls":4},{"$f":"IF(ISERROR(E24*360/$C$6),\" \",E24*360/$C$6)","v":" "},{"$nulls":4},{"$f":"IF(ISERROR(J24*360/$J$6),\" \",J24*360/$J$6)","v":" "},null,null,{"$f":"IF(ISERROR(M24/E24),\" \",M24/E24)","v":" "}]
[]
[{"$nulls":7},"D du flux de trésorerie d'exploitation",{"$nulls":4},{"$f":"IF(ISERROR(M17-M24),\" \",M17-M24)","v":" "}]
[]
[{"$nulls":12},{"$f":"IF(ISERROR(M27*360/J6),\" \",M27*360/J6)","v":" "}]